[Event "Titled Tuesday Blitz November 07 Early 2023"]
[White "Duda, Jan-Krzysztof"]
[Black "Samunenkov, Ihor"]
[WhiteFideId "1170546"]
[BlackFideId "14187086"]
[WhiteElo "3074"]
[BlackElo "2771"]
[Result "1-0"]
[Round "3"]
[TimeControl "180+1"]
[Date "2023.11.07"]
[WhiteClock "0:00:30"]
[BlackClock "0:00:00"]
[Board "5"]

1. Nf3 {[%clk 0:03:00]}  d5 {[%clk 0:02:58]} 2. g3 {[%clk 0:03:01]}  c5 {[%clk 0:02:58]} 3. Bg2 {[%clk 0:03:01]}  Nc6 {[%clk 0:02:59]} 4. d4 {[%clk 0:03:01]}  Nf6 {[%clk 0:02:58]} 5. O-O {[%clk 0:03:01]}  e6 {[%clk 0:02:59]} 6. a3 {[%clk 0:02:57]}  a6 {[%clk 0:02:54]} 7. dxc5 {[%clk 0:02:48]}  Bxc5 {[%clk 0:02:53]} 8. b4 {[%clk 0:02:48]}  Ba7 {[%clk 0:02:47]} 9. Bb2 {[%clk 0:02:45]}  b5 {[%clk 0:02:44]} 10. e4 {[%clk 0:02:34]}  O-O {[%clk 0:02:03]} 11. exd5 {[%clk 0:02:25]}  exd5 {[%clk 0:02:01]} 12. Nbd2 {[%clk 0:02:22]}  Ne4 {[%clk 0:01:55]} 13. Nb3 {[%clk 0:02:01]}  Bg4 {[%clk 0:01:53]} 14. Qc1 {[%clk 0:01:57]}  Qd7 {[%clk 0:01:10]} 15. Nfd4 {[%clk 0:01:46]}  Nxd4 {[%clk 0:01:02]} 16. Bxd4 {[%clk 0:01:47]}  Be2 {[%clk 0:00:52]} 17. Re1 {[%clk 0:01:44]}  Bc4 {[%clk 0:00:52]} 18. Bxa7 {[%clk 0:01:38]}  Qxa7 {[%clk 0:00:45]} 19. Bxe4 {[%clk 0:01:38]}  dxe4 {[%clk 0:00:44]} 20. Rxe4 {[%clk 0:01:38]}  Bd5 {[%clk 0:00:39]} 21. Re5 {[%clk 0:01:36]}  Rad8 {[%clk 0:00:27]} 22. Qf4 {[%clk 0:01:33]}  Qa8 {[%clk 0:00:24]} 23. Nd4 {[%clk 0:01:29]}  Qc8 {[%clk 0:00:21]} 24. Nf5 {[%clk 0:01:23]}  Qc3 {[%clk 0:00:18]} 25. Rae1 {[%clk 0:01:12]}  f6 {[%clk 0:00:14]} 26. Ne7+ {[%clk 0:00:53]}  Kh8 {[%clk 0:00:11]} 27. Nxd5 {[%clk 0:00:53]}  Rxd5 {[%clk 0:00:09]} 28. Rxd5 {[%clk 0:00:49]}  Qxe1+ {[%clk 0:00:09]} 29. Kg2 {[%clk 0:00:49]}  h6 {[%clk 0:00:08]} 30. c4 {[%clk 0:00:46]}  bxc4 {[%clk 0:00:04]} 31. Qxc4 {[%clk 0:00:47]}  Re8 {[%clk 0:00:04]} 32. Rd4 {[%clk 0:00:42]}  Qe6 {[%clk 0:00:03]} 33. Qxe6 {[%clk 0:00:37]}  Rxe6 {[%clk 0:00:04]} 34. Kf3 {[%clk 0:00:38]}  Kh7 {[%clk 0:00:04]} 35. h4 {[%clk 0:00:36]}  h5 {[%clk 0:00:04]} 36. a4 {[%clk 0:00:34]}  Kg6 {[%clk 0:00:04]} 37. b5 {[%clk 0:00:32]}  axb5 {[%clk 0:00:04]} 38. axb5 {[%clk 0:00:33]}  Rb6 {[%clk 0:00:02]} 39. Rd5 {[%clk 0:00:32]}  Rb7 {[%clk 0:00:02]} 40. Ke4 {[%clk 0:00:32]}  Rb8 {[%clk 0:00:02]} 41. Kd4 {[%clk 0:00:31]}  f5 {[%clk 0:00:01]} 42. Rd6+ {[%clk 0:00:31]}  Kf7 {[%clk 0:00:02]} 43. b6 {[%clk 0:00:31]}  g6 {[%clk 0:00:00]} 44. Kc5 {[%clk 0:00:30]} 1-0


[Site "https://www.chess.com"]

[Event "Titled Tuesday Blitz November 07 Early 2023"]
[White "Pranav, V"]
[Black "Mindlin, Alon"]
[WhiteFideId "25060783"]
[BlackFideId "2800071"]
[WhiteElo "3057"]
[BlackElo "2758"]
[Result "1-0"]
[Round "3"]
[TimeControl "180+1"]
[Date "2023.11.07"]
[WhiteClock "0:00:08"]
[BlackClock "0:00:42"]
[Board "7"]

1. e4 {[%clk 0:03:00]}  e5 {[%clk 0:02:57]} 2. Nf3 {[%clk 0:03:01]}  Nc6 {[%clk 0:02:57]} 3. Bb5 {[%clk 0:03:01]}  a6 {[%clk 0:02:57]} 4. Ba4 {[%clk 0:03:01]}  Nf6 {[%clk 0:02:56]} 5. O-O {[%clk 0:03:02]}  Be7 {[%clk 0:02:56]} 6. d3 {[%clk 0:03:02]}  b5 {[%clk 0:02:57]} 7. Bb3 {[%clk 0:03:02]}  d6 {[%clk 0:02:58]} 8. c3 {[%clk 0:03:00]}  O-O {[%clk 0:02:58]} 9. a4 {[%clk 0:03:00]}  b4 {[%clk 0:02:57]} 10. a5 {[%clk 0:03:00]}  Rb8 {[%clk 0:02:52]} 11. Ba4 {[%clk 0:02:52]}  Bd7 {[%clk 0:02:45]} 12. Bg5 {[%clk 0:02:47]}  Ng4 {[%clk 0:02:40]} 13. Bxe7 {[%clk 0:02:43]}  Nxe7 {[%clk 0:02:38]} 14. Nbd2 {[%clk 0:02:40]}  bxc3 {[%clk 0:02:30]} 15. bxc3 {[%clk 0:02:41]}  Nf6 {[%clk 0:02:22]} 16. Re1 {[%clk 0:02:38]}  Ng6 {[%clk 0:02:22]} 17. d4 {[%clk 0:02:35]}  Qe7 {[%clk 0:02:17]} 18. Nf1 {[%clk 0:02:30]}  Rb2 {[%clk 0:02:16]} 19. Ne3 {[%clk 0:02:24]}  Be6 {[%clk 0:02:03]} 20. Qd3 {[%clk 0:01:56]}  Ra8 {[%clk 0:01:57]} 21. g3 {[%clk 0:01:53]}  h6 {[%clk 0:01:45]} 22. Bc6 {[%clk 0:01:48]}  Ra7 {[%clk 0:01:37]} 23. Rab1 {[%clk 0:01:45]}  Ra2 {[%clk 0:01:29]} 24. Nf5 {[%clk 0:01:44]}  Qf8 {[%clk 0:01:25]} 25. dxe5 {[%clk 0:01:41]}  dxe5 {[%clk 0:01:23]} 26. Qe3 {[%clk 0:01:40]}  Ra8 {[%clk 0:01:20]} 27. Bxa8 {[%clk 0:01:39]}  Qxa8 {[%clk 0:01:21]} 28. Qc5 {[%clk 0:01:17]}  Bxf5 {[%clk 0:01:21]} 29. exf5 {[%clk 0:01:08]}  Nf4 {[%clk 0:01:22]} 30. gxf4 {[%clk 0:00:44]}  Qxf3 {[%clk 0:01:21]} 31. Qe3 {[%clk 0:00:45]}  Qh5 {[%clk 0:01:16]} 32. fxe5 {[%clk 0:00:16]}  Ng4 {[%clk 0:01:16]} 33. Qg3 {[%clk 0:00:16]}  Nxf2 {[%clk 0:01:12]} 34. Rf1 {[%clk 0:00:13]}  Ne4 {[%clk 0:00:52]} 35. Qf4 {[%clk 0:00:13]}  Ng5 {[%clk 0:00:51]} 36. Kh1 {[%clk 0:00:12]}  Qe2 {[%clk 0:00:48]} 37. Rg1 {[%clk 0:00:06]}  Nf3 {[%clk 0:00:43]} 38. Rb8+ {[%clk 0:00:06]}  Kh7 {[%clk 0:00:43]} 39. Rxg7+ {[%clk 0:00:06]}  Kxg7 {[%clk 0:00:44]} 40. f6+ {[%clk 0:00:06]}  Kg6 {[%clk 0:00:42]} 41. Rg8+ {[%clk 0:00:07]}  Kh7 {[%clk 0:00:41]} 42. Rg7+ {[%clk 0:00:07]}  Kh8 {[%clk 0:00:42]} 43. Qxh6# {[%clk 0:00:08]} 1-0


[Site "https://www.chess.com"]

[Event "Titled Tuesday Blitz November 07 Early 2023"]
[White "Csonka, Balazs"]
[Black "Le, Quang Liem"]
[WhiteFideId "742910"]
[BlackFideId "12401137"]
[WhiteElo "2754"]
[BlackElo "3051"]
[Result "1/2-1/2"]
[Round "3"]
[TimeControl "180+1"]
[Date "2023.11.07"]
[WhiteClock "0:00:03"]
[BlackClock "0:00:04"]
[Board "8"]

1. d4 {[%clk 0:03:00]}  Nf6 {[%clk 0:02:59]} 2. c4 {[%clk 0:03:00]}  e6 {[%clk 0:03:00]} 3. Nf3 {[%clk 0:03:00]}  Bb4+ {[%clk 0:02:57]} 4. Bd2 {[%clk 0:02:58]}  a5 {[%clk 0:02:54]} 5. g3 {[%clk 0:02:57]}  b6 {[%clk 0:02:54]} 6. Bg2 {[%clk 0:02:57]}  Bb7 {[%clk 0:02:54]} 7. O-O {[%clk 0:02:57]}  O-O {[%clk 0:02:54]} 8. Bf4 {[%clk 0:02:57]}  Be7 {[%clk 0:02:54]} 9. Qc2 {[%clk 0:02:53]}  Na6 {[%clk 0:02:47]} 10. Nc3 {[%clk 0:02:51]}  c5 {[%clk 0:02:36]} 11. Rad1 {[%clk 0:02:09]}  cxd4 {[%clk 0:02:28]} 12. Rxd4 {[%clk 0:02:10]}  Qc8 {[%clk 0:02:18]} 13. Qb1 {[%clk 0:01:24]}  Bc6 {[%clk 0:01:52]} 14. Rfd1 {[%clk 0:01:16]}  Qb7 {[%clk 0:01:47]} 15. Bd6 {[%clk 0:01:16]}  Bxd6 {[%clk 0:01:44]} 16. Rxd6 {[%clk 0:01:17]}  Rac8 {[%clk 0:01:20]} 17. b3 {[%clk 0:01:05]}  h6 {[%clk 0:01:19]} 18. Ne1 {[%clk 0:01:00]}  Bxg2 {[%clk 0:01:09]} 19. Nxg2 {[%clk 0:01:01]}  Nc5 {[%clk 0:01:10]} 20. Nf4 {[%clk 0:00:55]}  Rfd8 {[%clk 0:01:02]} 21. Nb5 {[%clk 0:00:47]}  Nce4 {[%clk 0:00:44]} 22. R6d3 {[%clk 0:00:40]}  d5 {[%clk 0:00:44]} 23. cxd5 {[%clk 0:00:32]}  e5 {[%clk 0:00:43]} 24. Ng2 {[%clk 0:00:28]}  Rc5 {[%clk 0:00:43]} 25. a4 {[%clk 0:00:24]}  Rcxd5 {[%clk 0:00:42]} 26. Ne3 {[%clk 0:00:21]}  R5d7 {[%clk 0:00:30]} 27. Nc4 {[%clk 0:00:12]}  Ng5 {[%clk 0:00:30]} 28. f3 {[%clk 0:00:12]}  e4 {[%clk 0:00:30]} 29. Rxd7 {[%clk 0:00:11]}  Rxd7 {[%clk 0:00:31]} 30. Rxd7 {[%clk 0:00:10]}  Qxd7 {[%clk 0:00:32]} 31. Qf1 {[%clk 0:00:06]}  exf3 {[%clk 0:00:29]} 32. exf3 {[%clk 0:00:07]}  Qd5 {[%clk 0:00:28]} 33. Kg2 {[%clk 0:00:06]}  Ng4 {[%clk 0:00:20]} 34. Qe2 {[%clk 0:00:05]}  Qc6 {[%clk 0:00:14]} 35. Nd4 {[%clk 0:00:04]}  Qb7 {[%clk 0:00:12]} 36. h4 {[%clk 0:00:03]}  Nh7 {[%clk 0:00:10]} 37. Qe8+ {[%clk 0:00:02]}  Nf8 {[%clk 0:00:11]} 38. Qc6 {[%clk 0:00:03]}  Qxc6 {[%clk 0:00:06]} 39. Nxc6 {[%clk 0:00:03]}  Nf6 {[%clk 0:00:07]} 40. Nxb6 {[%clk 0:00:04]}  Ne6 {[%clk 0:00:07]} 41. Nxa5 {[%clk 0:00:04]}  Nd4 {[%clk 0:00:07]} 42. b4 {[%clk 0:00:02]}  Kf8 {[%clk 0:00:07]} 43. b5 {[%clk 0:00:03]}  Ke7 {[%clk 0:00:07]} 44. Nc6+ {[%clk 0:00:03]}  Nxc6 {[%clk 0:00:07]} 45. bxc6 {[%clk 0:00:04]}  Kd6 {[%clk 0:00:08]} 46. Nc4+ {[%clk 0:00:04]}  Kxc6 {[%clk 0:00:08]} 47. Ne5+ {[%clk 0:00:05]}  Kc5 {[%clk 0:00:08]} 48. Nxf7 {[%clk 0:00:06]}  Kb4 {[%clk 0:00:08]} 49. g4 {[%clk 0:00:06]}  Kxa4 {[%clk 0:00:08]} 50. Kg3 {[%clk 0:00:06]}  Kb5 {[%clk 0:00:08]} 51. Kf4 {[%clk 0:00:07]}  Kc6 {[%clk 0:00:06]} 52. Kf5 {[%clk 0:00:08]}  Ne8 {[%clk 0:00:01]} 53. Kg6 {[%clk 0:00:08]}  Kd7 {[%clk 0:00:02]} 54. Ne5+ {[%clk 0:00:07]}  Ke7 {[%clk 0:00:02]} 55. Nd3 {[%clk 0:00:08]}  Kf8 {[%clk 0:00:03]} 56. Nf4 {[%clk 0:00:09]}  Kg8 {[%clk 0:00:03]} 57. Ne6 {[%clk 0:00:09]}  Kh8 {[%clk 0:00:03]} 58. f4 {[%clk 0:00:09]}  Kg8 {[%clk 0:00:03]} 59. f5 {[%clk 0:00:10]}  Kh8 {[%clk 0:00:04]} 60. Kf7 {[%clk 0:00:10]}  Nf6 {[%clk 0:00:04]} 61. g5 {[%clk 0:00:08]}  hxg5 {[%clk 0:00:05]} 62. hxg5 {[%clk 0:00:09]}  Ne4 {[%clk 0:00:06]} 63. Kg6 {[%clk 0:00:08]}  Kg8 {[%clk 0:00:06]} 64. Nf4 {[%clk 0:00:06]}  Nd6 {[%clk 0:00:05]} 65. Nh5 {[%clk 0:00:05]}  Nf7 {[%clk 0:00:05]} 66. f6 {[%clk 0:00:02]}  Nxg5 {[%clk 0:00:04]} 67. Kxg5 {[%clk 0:00:02]}  gxf6+ {[%clk 0:00:04]} 68. Nxf6+ {[%clk 0:00:03]} 1/2-1/2


[Site "https://www.chess.com"]

[Event "Titled Tuesday Blitz November 07 Early 2023"]
[White "Martinez Alcantara, Jose Eduardo"]
[Black "Wong, Yinn Long"]
[WhiteFideId "3805662"]
[BlackFideId "5707684"]
[WhiteElo "3044"]
[BlackElo "2752"]
[Result "1-0"]
[Round "3"]
[TimeControl "180+1"]
[Date "2023.11.07"]
[WhiteClock "0:01:56"]
[BlackClock "0:01:11"]
[Board "9"]

1. e4 {[%clk 0:03:00]}  c5 {[%clk 0:03:00]} 2. Nf3 {[%clk 0:03:01]}  d6 {[%clk 0:03:00]} 3. c3 {[%clk 0:03:01]}  Nf6 {[%clk 0:03:00]} 4. h3 {[%clk 0:03:02]}  Nc6 {[%clk 0:02:41]} 5. Bd3 {[%clk 0:03:02]}  g6 {[%clk 0:02:29]} 6. Bc2 {[%clk 0:02:58]}  Bg7 {[%clk 0:02:25]} 7. d4 {[%clk 0:02:58]}  O-O {[%clk 0:02:22]} 8. O-O {[%clk 0:02:58]}  cxd4 {[%clk 0:02:21]} 9. cxd4 {[%clk 0:02:59]}  Nb4 {[%clk 0:02:22]} 10. Bb3 {[%clk 0:02:59]}  d5 {[%clk 0:02:06]} 11. e5 {[%clk 0:02:58]}  Ne4 {[%clk 0:02:06]} 12. Nc3 {[%clk 0:02:59]}  Nxc3 {[%clk 0:02:01]} 13. bxc3 {[%clk 0:03:00]}  Nc6 {[%clk 0:02:02]} 14. Bc2 {[%clk 0:02:56]}  Bd7 {[%clk 0:01:34]} 15. Rb1 {[%clk 0:02:49]}  Na5 {[%clk 0:01:34]} 16. Ng5 {[%clk 0:02:39]}  e6 {[%clk 0:01:27]} 17. h4 {[%clk 0:02:36]}  Rc8 {[%clk 0:01:27]} 18. Ba3 {[%clk 0:02:03]}  Re8 {[%clk 0:01:26]} 19. Qf3 {[%clk 0:02:03]}  f6 {[%clk 0:01:25]} 20. Nxh7 {[%clk 0:02:01]}  Kxh7 {[%clk 0:01:20]} 21. Qh5+ {[%clk 0:02:00]}  Kg8 {[%clk 0:01:14]} 22. Bxg6 {[%clk 0:02:00]}  Re7 {[%clk 0:01:13]} 23. Qh7+ {[%clk 0:01:55]}  Kf8 {[%clk 0:01:13]} 24. exf6 {[%clk 0:01:56]}  Bxf6 {[%clk 0:01:11]} 25. Qf7# {[%clk 0:01:56]} 1-0


[Site "https://www.chess.com"]

[Event "Titled Tuesday Blitz November 07 Early 2023"]
[White "Preotu, Razvan"]
[Black "Pranesh M"]
[WhiteFideId "2613280"]
[BlackFideId "35028600"]
[WhiteElo "2733"]
[BlackElo "3029"]
[Result "0-1"]
[Round "3"]
[TimeControl "180+1"]
[Date "2023.11.07"]
[WhiteClock "0:00:01"]
[BlackClock "0:00:35"]
[Board "10"]

1. e4 {[%clk 0:03:00]}  e5 {[%clk 0:02:59]} 2. Nf3 {[%clk 0:03:01]}  Nc6 {[%clk 0:02:58]} 3. Bc4 {[%clk 0:03:02]}  Nf6 {[%clk 0:02:58]} 4. d3 {[%clk 0:03:02]}  Bc5 {[%clk 0:02:56]} 5. c3 {[%clk 0:03:03]}  O-O {[%clk 0:02:56]} 6. O-O {[%clk 0:03:03]}  h6 {[%clk 0:02:55]} 7. Re1 {[%clk 0:03:00]}  a6 {[%clk 0:02:55]} 8. a4 {[%clk 0:02:56]}  Ba7 {[%clk 0:02:54]} 9. h3 {[%clk 0:02:56]}  d6 {[%clk 0:02:54]} 10. Nbd2 {[%clk 0:02:51]}  Nh5 {[%clk 0:02:53]} 11. Nf1 {[%clk 0:02:47]}  Qf6 {[%clk 0:02:53]} 12. Ne3 {[%clk 0:02:45]}  Nf4 {[%clk 0:02:51]} 13. Ng4 {[%clk 0:02:41]}  Bxg4 {[%clk 0:02:48]} 14. hxg4 {[%clk 0:02:42]}  Ne7 {[%clk 0:02:48]} 15. d4 {[%clk 0:02:29]}  Neg6 {[%clk 0:02:45]} 16. g3 {[%clk 0:02:28]}  Ne6 {[%clk 0:02:43]} 17. Be3 {[%clk 0:02:23]}  Rad8 {[%clk 0:02:29]} 18. d5 {[%clk 0:02:08]}  Ng5 {[%clk 0:02:26]} 19. Bxg5 {[%clk 0:01:46]}  hxg5 {[%clk 0:02:25]} 20. Kg2 {[%clk 0:01:47]}  Qe7 {[%clk 0:02:01]} 21. Rh1 {[%clk 0:01:44]}  f6 {[%clk 0:02:01]} 22. b4 {[%clk 0:01:23]}  Qd7 {[%clk 0:02:00]} 23. Nd2 {[%clk 0:01:12]}  Kf7 {[%clk 0:01:59]} 24. Qf3 {[%clk 0:00:59]}  Rh8 {[%clk 0:01:53]} 25. a5 {[%clk 0:00:55]}  Ne7 {[%clk 0:01:47]} 26. Rab1 {[%clk 0:00:43]}  Rb8 {[%clk 0:01:36]} 27. b5 {[%clk 0:00:40]}  Rxh1 {[%clk 0:01:34]} 28. Kxh1 {[%clk 0:00:41]}  axb5 {[%clk 0:01:21]} 29. Bxb5 {[%clk 0:00:42]}  c6 {[%clk 0:01:21]} 30. dxc6 {[%clk 0:00:42]}  bxc6 {[%clk 0:01:22]} 31. Bc4+ {[%clk 0:00:42]}  d5 {[%clk 0:01:22]} 32. Rxb8 {[%clk 0:00:41]}  Bxb8 {[%clk 0:01:23]} 33. Bb3 {[%clk 0:00:41]}  Ke8 {[%clk 0:01:14]} 34. a6 {[%clk 0:00:38]}  Ba7 {[%clk 0:01:10]} 35. Kg2 {[%clk 0:00:38]}  Qd8 {[%clk 0:01:02]} 36. exd5 {[%clk 0:00:21]}  cxd5 {[%clk 0:01:03]} 37. Nf1 {[%clk 0:00:21]}  Qb6 {[%clk 0:00:59]} 38. Ba4+ {[%clk 0:00:17]}  Kf8 {[%clk 0:00:59]} 39. Ne3 {[%clk 0:00:18]}  Qxa6 {[%clk 0:00:58]} 40. Bb3 {[%clk 0:00:18]}  Bxe3 {[%clk 0:00:58]} 41. Qxe3 {[%clk 0:00:19]}  Qb7 {[%clk 0:00:57]} 42. Bd1 {[%clk 0:00:06]}  d4+ {[%clk 0:00:55]} 43. Qf3 {[%clk 0:00:07]}  e4 {[%clk 0:00:52]} 44. Qe2 {[%clk 0:00:07]}  dxc3 {[%clk 0:00:48]} 45. Bc2 {[%clk 0:00:04]}  e3+ {[%clk 0:00:48]} 46. f3 {[%clk 0:00:03]}  Qb2 {[%clk 0:00:47]} 47. Qd3 {[%clk 0:00:02]}  Nd5 {[%clk 0:00:44]} 48. Qxd5 {[%clk 0:00:02]}  Qxc2+ {[%clk 0:00:45]} 49. Kh3 {[%clk 0:00:03]}  Qh7+ {[%clk 0:00:45]} 50. Kg2 {[%clk 0:00:02]}  Qc2+ {[%clk 0:00:45]} 51. Kh3 {[%clk 0:00:03]}  Qd2 {[%clk 0:00:46]} 52. Qc5+ {[%clk 0:00:02]}  Ke8 {[%clk 0:00:46]} 53. Qc8+ {[%clk 0:00:03]}  Kf7 {[%clk 0:00:44]} 54. Qc4+ {[%clk 0:00:03]}  Kg6 {[%clk 0:00:42]} 55. Qe4+ {[%clk 0:00:03]}  Kf7 {[%clk 0:00:40]} 56. Qc4+ {[%clk 0:00:04]}  Ke7 {[%clk 0:00:41]} 57. Qc7+ {[%clk 0:00:04]}  Ke6 {[%clk 0:00:41]} 58. Qc6+ {[%clk 0:00:04]}  Qd6 {[%clk 0:00:40]} 59. Qxc3 {[%clk 0:00:04]}  Qe5 {[%clk 0:00:38]} 60. Qc8+ {[%clk 0:00:04]}  Kf7 {[%clk 0:00:38]} 61. Qc4+ {[%clk 0:00:04]}  Qe6 {[%clk 0:00:38]} 62. Qc7+ {[%clk 0:00:04]}  Kg8 {[%clk 0:00:38]} 63. Qd8+ {[%clk 0:00:04]}  Kh7 {[%clk 0:00:38]} 64. Qd3+ {[%clk 0:00:04]}  Kh6 {[%clk 0:00:39]} 65. Qd8 {[%clk 0:00:03]}  Kh7 {[%clk 0:00:38]} 66. Qd3+ {[%clk 0:00:03]}  g6 {[%clk 0:00:38]} 67. Qe2 {[%clk 0:00:04]}  f5 {[%clk 0:00:36]} 68. gxf5 {[%clk 0:00:03]}  gxf5 {[%clk 0:00:37]} 69. Kg2 {[%clk 0:00:02]}  Kh6 {[%clk 0:00:37]} 70. Kf1 {[%clk 0:00:02]}  f4 {[%clk 0:00:35]} 71. g4 {[%clk 0:00:01]}  Qb3 {[%clk 0:00:34]} 72. Qh2+ {[%clk 0:00:01]}  Kg7 {[%clk 0:00:34]} 73. Qh5 {[%clk 0:00:01]}  Qd1+ {[%clk 0:00:34]} 74. Kg2 {[%clk 0:00:02]}  Qd5 {[%clk 0:00:34]} 75. Qe8 {[%clk 0:00:02]}  Qd2+ {[%clk 0:00:33]} 76. Kh3 {[%clk 0:00:02]}  Qd6 {[%clk 0:00:34]} 77. Qe4 {[%clk 0:00:02]}  Qg6 {[%clk 0:00:31]} 78. Qe7+ {[%clk 0:00:02]}  Kg8 {[%clk 0:00:31]} 79. Qd8+ {[%clk 0:00:02]}  Kh7 {[%clk 0:00:31]} 80. Qe7+ {[%clk 0:00:02]}  Qg7 {[%clk 0:00:32]} 81. Qe4+ {[%clk 0:00:03]}  Kh6 {[%clk 0:00:32]} 82. Qe6+ {[%clk 0:00:03]}  Qg6 {[%clk 0:00:33]} 83. Qe5 {[%clk 0:00:04]}  Qh7 {[%clk 0:00:33]} 84. Qe6+ {[%clk 0:00:03]}  Kg7+ {[%clk 0:00:33]} 85. Kg2 {[%clk 0:00:04]}  Qc2+ {[%clk 0:00:34]} 86. Kh3 {[%clk 0:00:04]}  Qc7 {[%clk 0:00:34]} 87. Qf5 {[%clk 0:00:04]}  Qe7 {[%clk 0:00:35]} 88. Qb1 {[%clk 0:00:02]}  e2 {[%clk 0:00:35]} 89. Qe1 {[%clk 0:00:03]}  Qe3 {[%clk 0:00:35]} 90. Kg2 {[%clk 0:00:03]}  Kg8 {[%clk 0:00:31]} 91. Qb1 {[%clk 0:00:02]}  e1=Q {[%clk 0:00:30]} 92. Qg6+ {[%clk 0:00:02]}  Kf8 {[%clk 0:00:31]} 93. Qf6+ {[%clk 0:00:03]}  Ke8 {[%clk 0:00:31]} 94. Qc6+ {[%clk 0:00:03]}  Kd8 {[%clk 0:00:31]} 95. Qd6+ {[%clk 0:00:04]}  Kc8 {[%clk 0:00:32]} 96. Qc6+ {[%clk 0:00:05]}  Kb8 {[%clk 0:00:33]} 97. Qb5+ {[%clk 0:00:05]}  Kc7 {[%clk 0:00:33]} 98. Qc4+ {[%clk 0:00:06]}  Kd6 {[%clk 0:00:34]} 99. Qa6+ {[%clk 0:00:06]}  Kc5 {[%clk 0:00:34]} 100. Qa7+ {[%clk 0:00:06]}  Kb4 {[%clk 0:00:34]} 101. Qb7+ {[%clk 0:00:04]}  Ka3 {[%clk 0:00:34]} 102. Qa6+ {[%clk 0:00:04]}  Kb2 {[%clk 0:00:35]} 103. Qb5+ {[%clk 0:00:01]}  Qb3 {[%clk 0:00:35]} 0-1


[Site "https://www.chess.com"]

[Event "Titled Tuesday Blitz November 07 Early 2023"]
[White "Xiong, Jeffery"]
[Black "Perez Gormaz, Matias"]
[WhiteFideId "2047640"]
[BlackFideId "3406342"]
[WhiteElo "3010"]
[BlackElo "2731"]
[Result "1-0"]
[Round "3"]
[TimeControl "180+1"]
[Date "2023.11.07"]
[WhiteClock "0:01:01"]
[BlackClock "0:00:02"]
[Board "11"]

1. d4 {[%clk 0:03:00]}  Nf6 {[%clk 0:02:54]} 2. c4 {[%clk 0:03:01]}  e6 {[%clk 0:02:54]} 3. Nc3 {[%clk 0:03:01]}  Bb4 {[%clk 0:02:54]} 4. Nf3 {[%clk 0:03:01]}  Bxc3+ {[%clk 0:02:48]} 5. bxc3 {[%clk 0:03:02]}  d6 {[%clk 0:02:48]} 6. Nd2 {[%clk 0:02:48]}  e5 {[%clk 0:02:45]} 7. e4 {[%clk 0:02:48]}  c5 {[%clk 0:02:44]} 8. Bd3 {[%clk 0:02:40]}  O-O {[%clk 0:02:37]} 9. O-O {[%clk 0:02:40]}  Nc6 {[%clk 0:02:36]} 10. Nb3 {[%clk 0:02:40]}  b6 {[%clk 0:02:35]} 11. f4 {[%clk 0:02:40]}  exd4 {[%clk 0:02:11]} 12. cxd4 {[%clk 0:02:40]}  cxd4 {[%clk 0:02:10]} 13. Bb2 {[%clk 0:02:40]}  Re8 {[%clk 0:02:07]} 14. Qf3 {[%clk 0:02:28]}  Bb7 {[%clk 0:02:03]} 15. Rae1 {[%clk 0:02:28]}  Nb4 {[%clk 0:01:33]} 16. Bb1 {[%clk 0:02:28]}  d3 {[%clk 0:01:33]} 17. Nd2 {[%clk 0:02:28]}  b5 {[%clk 0:01:00]} 18. cxb5 {[%clk 0:02:23]}  d5 {[%clk 0:00:50]} 19. Bxf6 {[%clk 0:01:40]}  Qxf6 {[%clk 0:00:51]} 20. e5 {[%clk 0:01:41]}  Qb6+ {[%clk 0:00:51]} 21. Kh1 {[%clk 0:01:42]}  d4 {[%clk 0:00:39]} 22. Qg3 {[%clk 0:01:42]}  Qg6 {[%clk 0:00:38]} 23. Qf2 {[%clk 0:01:36]}  Nc2 {[%clk 0:00:29]} 24. Rd1 {[%clk 0:01:36]}  Ne3 {[%clk 0:00:26]} 25. Rg1 {[%clk 0:01:34]}  Ng4 {[%clk 0:00:18]} 26. Qg3 {[%clk 0:01:20]}  Qh5 {[%clk 0:00:18]} 27. h3 {[%clk 0:01:13]}  Nf2+ {[%clk 0:00:18]} 28. Kh2 {[%clk 0:01:10]}  Nxd1 {[%clk 0:00:19]} 29. Bxd3 {[%clk 0:01:09]}  Ne3 {[%clk 0:00:17]} 30. Nb3 {[%clk 0:01:09]}  Rad8 {[%clk 0:00:17]} 31. Nc5 {[%clk 0:01:09]}  Ba8 {[%clk 0:00:15]} 32. a4 {[%clk 0:01:05]}  Qh6 {[%clk 0:00:12]} 33. Rc1 {[%clk 0:01:02]}  f6 {[%clk 0:00:08]} 34. e6 {[%clk 0:01:01]}  f5 {[%clk 0:00:08]} 35. a5 {[%clk 0:00:59]}  Nxg2 {[%clk 0:00:03]} 36. b6 {[%clk 0:00:59]}  axb6 {[%clk 0:00:04]} 37. axb6 {[%clk 0:01:00]}  Qxf4 {[%clk 0:00:02]} 38. b7 {[%clk 0:00:59]}  Qxg3+ {[%clk 0:00:02]} 39. Kxg3 {[%clk 0:01:00]}  Bxb7 {[%clk 0:00:03]} 40. Nxb7 {[%clk 0:01:01]}  Ne3 {[%clk 0:00:03]} 41. Nxd8 {[%clk 0:01:00]}  Rxd8 {[%clk 0:00:04]} 42. Bb5 {[%clk 0:01:01]}  Rf8 {[%clk 0:00:02]} 43. e7 {[%clk 0:01:01]} 1-0


[Site "https://www.chess.com"]

[Event "Titled Tuesday Blitz November 07 Early 2023"]
[White "Deac, Bogdan-Daniel"]
[Black "Orozbaev, Eldiar"]
[WhiteFideId "1226380"]
[BlackFideId "13802240"]
[WhiteElo "3003"]
[BlackElo "2726"]
[Result "1/2-1/2"]
[Round "3"]
[TimeControl "180+1"]
[Date "2023.11.07"]
[WhiteClock "0:00:06"]
[BlackClock "0:00:05"]
[Board "12"]

1. b3 {[%clk 0:03:00]}  Nf6 {[%clk 0:02:49]} 2. Bb2 {[%clk 0:03:01]}  e6 {[%clk 0:02:49]} 3. c4 {[%clk 0:03:01]}  Be7 {[%clk 0:02:49]} 4. Nf3 {[%clk 0:03:00]}  d5 {[%clk 0:02:48]} 5. g3 {[%clk 0:03:00]}  O-O {[%clk 0:02:48]} 6. Bg2 {[%clk 0:03:00]}  c5 {[%clk 0:02:48]} 7. cxd5 {[%clk 0:02:59]}  exd5 {[%clk 0:02:48]} 8. d4 {[%clk 0:02:57]}  Ne4 {[%clk 0:02:39]} 9. O-O {[%clk 0:02:56]}  Nc6 {[%clk 0:02:37]} 10. Qc1 {[%clk 0:02:53]}  Bg4 {[%clk 0:02:29]} 11. dxc5 {[%clk 0:02:51]}  Bxc5 {[%clk 0:02:27]} 12. Nc3 {[%clk 0:02:50]}  Bb6 {[%clk 0:02:09]} 13. Qf4 {[%clk 0:02:24]}  Bxf3 {[%clk 0:01:54]} 14. Bxf3 {[%clk 0:02:19]}  Nxc3 {[%clk 0:01:40]} 15. Bxc3 {[%clk 0:02:18]}  d4 {[%clk 0:01:40]} 16. Rfd1 {[%clk 0:01:42]}  Qe7 {[%clk 0:01:40]} 17. Bb2 {[%clk 0:01:41]}  Rad8 {[%clk 0:01:37]} 18. Rac1 {[%clk 0:01:41]}  Rfe8 {[%clk 0:01:17]} 19. Kg2 {[%clk 0:01:13]}  h6 {[%clk 0:01:16]} 20. h4 {[%clk 0:01:08]}  Qe6 {[%clk 0:01:05]} 21. Rd2 {[%clk 0:00:34]}  Ba5 {[%clk 0:01:02]} 22. Rd3 {[%clk 0:00:33]}  Bb6 {[%clk 0:00:56]} 23. Rd2 {[%clk 0:00:22]}  Ba5 {[%clk 0:00:56]} 24. Rdc2 {[%clk 0:00:22]}  Bb6 {[%clk 0:00:54]} 25. Bxc6 {[%clk 0:00:19]}  bxc6 {[%clk 0:00:55]} 26. Qf3 {[%clk 0:00:18]}  c5 {[%clk 0:00:53]} 27. Ba3 {[%clk 0:00:16]}  Rd5 {[%clk 0:00:47]} 28. Bxc5 {[%clk 0:00:16]}  Rf5 {[%clk 0:00:48]} 29. Qb7 {[%clk 0:00:08]}  Bxc5 {[%clk 0:00:24]} 30. Rxc5 {[%clk 0:00:07]}  Rxc5 {[%clk 0:00:25]} 31. Rxc5 {[%clk 0:00:08]}  Qxe2 {[%clk 0:00:25]} 32. Rc7 {[%clk 0:00:07]}  Rf8 {[%clk 0:00:15]} 33. Qxa7 {[%clk 0:00:07]}  d3 {[%clk 0:00:15]} 34. Rd7 {[%clk 0:00:07]}  Qe4+ {[%clk 0:00:12]} 35. Kh2 {[%clk 0:00:06]}  Ra8 {[%clk 0:00:05]} 36. Qd4 {[%clk 0:00:05]}  Qxd4 {[%clk 0:00:04]} 37. Rxd4 {[%clk 0:00:05]}  Rxa2 {[%clk 0:00:05]} 38. Kg2 {[%clk 0:00:06]}  d2 {[%clk 0:00:06]} 39. b4 {[%clk 0:00:05]}  Rb2 {[%clk 0:00:06]} 40. Rd8+ {[%clk 0:00:05]}  Kh7 {[%clk 0:00:06]} 41. b5 {[%clk 0:00:06]}  Rxb5 {[%clk 0:00:06]} 42. Rxd2 {[%clk 0:00:06]}  Rf5 {[%clk 0:00:05]} 43. Rd3 {[%clk 0:00:06]} 1/2-1/2


[Site "https://www.chess.com"]